bitfinex/quotes_BTCUSD_20221001
["timestamp","ask_amount","ask_price","bid_price","bid_amount"]
[1664626472674,0.00208271,19292.0,19291.0,1.11518182]
[1664626472885,0.00208271,19292.0,19291.0,1.2655944]
[1664626473801,0.00208271,19292.0,19291.0,1.11518182]
[1664626474042,0.00208271,19292.0,19291.0,1.08818182]
[1664626474606,0.00208271,19292.0,19291.0,1.18818182]
[1664626474834,0.00208271,19292.0,19291.0,1.21518182]
[1664626475066,0.00208271,19292.0,19291.0,1.56201642]
[1664626475287,0.00208271,19292.0,19291.0,1.46201642]
[1664626475512,0.00208271,19292.0,19291.0,1.77303216]
[1664626475767,0.00208271,19292.0,19291.0,1.72303216]
[1664626475960,0.00208271,19292.0,19291.0,1.77303216]
[1664626476201,0.00208271,19292.0,19291.0,1.74603216]
[1664626476850,0.00208271,19292.0,19291.0,1.77303216]
[1664626477736,0.00208271,19292.0,19291.0,1.67303216]
[1664626477958,0.00208271,19292.0,19291.0,1.32619756]
[1664626478161,0.00208271,19292.0,19291.0,1.29919756]
[1664626478394,0.00208271,19292.0,19291.0,1.69603216]
[1664626478605,0.00208271,19292.0,19291.0,1.74603216]
[1664626478838,0.00208271,19292.0,19291.0,1.77303216]
[1664626479814,0.0020203,19292.0,19291.0,1.90262616]
[1664626480041,0.0020203,19292.0,19291.0,1.87562616]
[1664626480490,0.0020203,19292.0,19291.0,2.394037]
[1664626480953,0.0020203,19292.0,19291.0,2.421037]
[1664626482159,0.0020203,19292.0,19291.0,2.394037]
[1664626482814,0.0020203,19292.0,19291.0,2.421037]
[1664626484171,0.0020203,19292.0,19291.0,2.394037]
[1664626484858,0.0020203,19292.0,19291.0,2.421037]
[1664626486060,0.0020203,19292.0,19291.0,2.394037]
[1664626486902,0.0020203,19292.0,19291.0,2.421037]
[1664626488106,0.0020203,19292.0,19291.0,2.394037]
[1664626488929,0.0020203,19292.0,19291.0,2.421037]
[1664626489509,0.0020203,19292.0,19291.0,2.939413]
[1664626490199,0.0020203,19292.0,19291.0,2.912413]
[1664626490842,0.0020203,19292.0,19291.0,2.940413]
[1664626492235,0.0020203,19292.0,19291.0,2.912413]
[1664626492934,0.0020203,19292.0,19291.0,2.939413]
[1664626494109,0.0020203,19292.0,19291.0,2.912413]
[1664626495005,0.0020203,19292.0,19291.0,2.939413]
[1664626496112,0.0020203,19292.0,19291.0,2.912413]
[1664626497067,0.0020203,19292.0,19291.0,2.940413]
[1664626497280,0.0020203,19292.0,19291.0,2.422037]
[1664626497499,0.0020203,19292.0,19291.0,2.063117]
[1664626497725,0.0020203,19292.0,19291.0,2.422037]
[1664626498161,0.0020203,19292.0,19291.0,2.394037]
[1664626499055,0.0020203,19292.0,19291.0,2.421037]
[1664626500219,0.0020203,19292.0,19291.0,2.394037]
[1664626500451,0.02366404,19292.0,19291.0,2.394037]
[1664626500868,0.02366404,19292.0,19291.0,2.422037]
[1664626502267,0.02366404,19292.0,19291.0,2.394037]
[1664626502989,0.02366404,19292.0,19291.0,2.422037]
[1664626503429,0.0235967,19292.0,19291.0,2.422037]
[1664626504323,0.0235967,19292.0,19291.0,2.394037]
[1664626505072,0.0235967,19292.0,19291.0,2.422037]
[1664626505318,0.0235967,19292.0,19291.0,2.063117]
[1664626505538,0.0235967,19292.0,19291.0,2.422037]
[1664626506657,0.0235967,19292.0,19291.0,2.394037]
[1664626507111,0.0235967,19292.0,19291.0,2.422037]
[1664626508266,0.0235967,19292.0,19291.0,2.394037]
[1664626508957,0.0235967,19292.0,19291.0,2.422037]
[1664626509413,0.0235967,19292.0,19291.0,2.45066121]
[1664626510146,0.0235967,19292.0,19291.0,2.09174121]
[1664626510376,0.0235967,19292.0,19291.0,2.42266121]
[1664626511008,0.0235967,19292.0,19291.0,2.45066121]
[1664626511246,0.0235967,19292.0,19291.0,2.43566121]
[1664626511514,0.22843603,19292.0,19291.0,2.13964547]
[1664626511737,0.0235967,19292.0,19291.0,0.78588603]
[1664626512467,0.0235967,19292.0,19291.0,1.11680603]
[1664626512753,0.0235967,19292.0,19291.0,1.46364063]
[1664626512978,0.0235967,19292.0,19291.0,1.54064063]
[1664626513195,0.0235967,19292.0,19291.0,1.59064063]
[1664626513644,0.0235967,19292.0,19291.0,1.81451839]
[1664626514187,0.0235967,19292.0,19291.0,1.78751839]
[1664626514841,0.0235967,19292.0,19291.0,1.81451839]
[1664626515299,0.22843603,19292.0,19291.0,1.14380603]
[1664626515513,0.0235967,19292.0,19291.0,0.56735565]
[1664626515737,0.4123577,19292.0,19291.0,0.56735565]
[1664626516225,0.4123577,19292.0,19291.0,0.54035565]
[1664626516869,0.4123577,19292.0,19291.0,0.56435565]
[1664626518416,0.4123577,19292.0,19291.0,0.54035565]
[1664626518966,0.4123577,19292.0,19291.0,0.56335565]
[1664626520356,0.4123577,19292.0,19291.0,0.54035565]
[1664626521017,0.4123577,19292.0,19291.0,0.56335565]
[1664626522377,0.4123577,19292.0,19291.0,0.54035565]
[1664626523058,0.4123577,19292.0,19291.0,0.56335565]
[1664626523935,0.4123577,19292.0,19291.0,0.92227565]
[1664626524389,0.4123577,19292.0,19291.0,0.89927565]
[1664626524603,0.4123577,19292.0,19291.0,0.54035565]
[1664626524830,0.4123577,19292.0,19291.0,0.89927565]
[1664626525051,0.4123577,19292.0,19291.0,0.92227565]
[1664626525278,0.4123577,19292.0,19291.0,0.56335565]
[1664626526408,0.4123577,19292.0,19291.0,0.54035565]
[1664626527060,0.4123577,19292.0,19291.0,0.56335565]
[1664626527711,0.4123577,19292.0,19291.0,0.92227565]
[1664626527931,0.4123577,19292.0,19291.0,0.56335565]
[1664626528422,0.4123577,19292.0,19291.0,0.54035565]
[1664626529105,0.4123577,19292.0,19291.0,0.56335565]
[1664626529574,0.9307067,19292.0,19291.0,0.56335565]
[1664626530249,0.9307067,19292.0,19291.0,0.54035565]
[1664626531171,0.9307067,19292.0,19291.0,0.56335565]
[1664626532317,0.9307067,19292.0,19291.0,0.54035565]
[1664626533234,0.9307067,19292.0,19291.0,0.56335565]
[1664626533690,0.9307067,19292.0,19291.0,0.05162421]
[1664626533911,1.2307067,19292.0,19291.0,0.05162421]
[1664626534130,1.2307067,19292.0,19291.0,0.05153737]
[1664626534351,1.2307067,19292.0,19291.0,0.02853737]
[1664626535017,1.2307067,19292.0,19291.0,0.04553737]
[1664626536411,1.2307067,19292.0,19291.0,0.02853737]
[1664626537091,1.2307067,19292.0,19291.0,0.04553737]
[1664626537316,2.49727747,19292.0,19291.0,7.37e-06]
[1664626537543,2.28305402,19292.0,19291.0,7.37e-06]
[1664626537769,3.03196084,19292.0,19291.0,7.37e-06]
[1664626537989,3.59250573,19292.0,19291.0,7.37e-06]
[1664626538242,3.84250573,19292.0,19291.0,7.37e-06]
[1664626538461,0.05,19288.0,19287.0,0.0011]
[1664626538680,0.25483933,19288.0,19287.0,0.0011]
[1664626538899,0.35,19288.0,19287.0,0.00311455]
[1664626539144,0.35,19288.0,19287.0,0.00511455]
[1664626539145,0.406,19288.0,19287.0,0.00511455]
[1664626539584,0.41964489,19288.0,19287.0,0.00511455]
[1664626540458,0.36364489,19288.0,19287.0,0.00311455]
[1664626541061,0.44264489,19288.0,19287.0,0.00311455]
[1664626542330,0.36364489,19288.0,19287.0,0.00311455]
[1664626543234,0.14264489,19288.0,19287.0,0.00311455]
[1664626543772,0.09264489,19288.0,19287.0,0.10687455]
[1664626544245,0.09264489,19288.0,19287.0,0.00311455]
[1664626544246,2.74773506,19288.0,19287.0,0.00311455]
[1664626544464,2.66873506,19288.0,19287.0,0.00311455]
[1664626545143,2.74773506,19288.0,19287.0,0.00311455]
[1664626545590,0.09264489,19288.0,19287.0,0.00311455]
[1664626546427,0.01364489,19288.0,19287.0,0.00311455]
[1664626547220,0.09264489,19288.0,19287.0,0.00311455]
[1664626548599,0.01364489,19288.0,19287.0,0.00311455]
[1664626549281,0.09264489,19288.0,19287.0,0.00311455]
[1664626550157,0.09126357,19288.0,19287.0,0.00311455]
[1664626550375,0.01226357,19288.0,19287.0,0.00311455]
[1664626551106,0.09126357,19288.0,19287.0,0.00311455]
[1664626552011,0.39126357,19288.0,19287.0,0.00311455]
[1664626552471,0.31226357,19288.0,19287.0,0.00311455]
[1664626552708,0.01226357,19288.0,19287.0,0.00311455]
[1664626552960,0.01226357,19288.0,19287.0,0.96399541]
[1664626553195,0.01226357,19288.0,19287.0,1.32415541]
[1664626553196,0.07826357,19288.0,19287.0,1.32415541]
[1664626553429,0.07826357,19288.0,19287.0,1.51357892]
[1664626554114,0.07826357,19288.0,19287.0,1.64319892]
[1664626554571,0.01226357,19288.0,19287.0,1.63819892]
[1664626555227,0.01226357,19288.0,19287.0,1.65719892]
[1664626556343,0.01226357,19288.0,19287.0,1.63819892]
[1664626557230,0.01226357,19288.0,19287.0,0.7232695]
[1664626557455,0.01226357,19288.0,19287.0,0.53384599]
[1664626557799,0.01226357,19288.0,19287.0,0.89276599]
[1664626558016,0.01226357,19288.0,19287.0,0.87923541]
[1664626558236,0.01226357,19288.0,19287.0,0.86023541]
[1664626558443,0.01226357,19288.0,19287.0,0.87376599]
[1664626558653,0.01226357,19288.0,19287.0,0.51484599]
[1664626558889,0.01226357,19288.0,19287.0,0.87376599]
[1664626559114,0.01226357,19288.0,19287.0,0.89276599]
[1664626559909,0.01226357,19288.0,19287.0,1.23815541]
[1664626560133,0.01226357,19288.0,19287.0,1.11115104]
[1664626560350,0.01226357,19288.0,19287.0,1.45107104]
[1664626560581,0.01226357,19288.0,19287.0,1.55483104]
[1664626560808,0.01226357,19288.0,19287.0,1.50107104]
[1664626561219,0.01226357,19288.0,19287.0,1.52007104]
[1664626561674,0.01226357,19288.0,19287.0,1.16115104]
[1664626561980,0.01226357,19288.0,19287.0,1.52007104]
[1664626562328,0.01226357,19288.0,19287.0,1.50107104]
[1664626564119,0.01226357,19288.0,19287.0,1.52007104]
[1664626564339,0.01226357,19288.0,19287.0,1.50107104]
[1664626565189,0.01226357,19288.0,19287.0,1.64969104]
[1664626566998,0.01226357,19288.0,19287.0,1.63069104]
[1664626567197,0.01226357,19288.0,19287.0,1.52007104]
[1664626568554,0.01226357,19288.0,19287.0,1.50107104]
[1664626569274,0.01226357,19288.0,19287.0,1.52007104]
[1664626569516,0.08123175,19297.0,19296.0,0.07445365]
[1664626569765,0.10154374,19298.0,19296.0,0.77148671]
[1664626570023,0.1406175,19299.0,19297.0,0.79461837]
[1664626570277,0.0406175,19300.0,19298.0,0.99982417]
[1664626570513,0.10154374,19305.0,19299.0,0.79699817]
[1664626570755,0.0416175,19306.0,19300.0,0.82254452]
[1664626570992,0.001,19306.0,19302.0,1.2]
[1664626571220,0.001,19306.0,19305.0,0.07445365]
[1664626571451,0.001,19306.0,19305.0,0.43807817]
[1664626571703,0.001,19306.0,19305.0,0.84699817]
[1664626571952,0.001,19306.0,19305.0,0.35892]
[1664626572188,0.001,19306.0,19301.0,0.8185]
[1664626572429,0.001,19306.0,19302.0,0.40892]
[1664626572644,0.001,19306.0,19303.0,0.72254452]
[1664626572890,0.001,19306.0,19304.0,0.35892]
[1664626573106,0.001,19306.0,19305.0,0.07445365]
[1664626574523,0.10828,19306.0,19305.0,0.07445365]
[1664626574762,0.001,19306.0,19302.0,0.55980333]
[1664626575000,0.20583933,19306.0,19303.0,0.87065144]
[1664626575238,0.001,19306.0,19303.0,0.51173144]
[1664626577171,0.001,19306.0,19304.0,0.35892]
[1664626577418,0.001,19306.0,19304.0,0.129578]
[1664626577901,0.001,19306.0,19305.0,0.43337365]
[1664626578122,0.001,19306.0,19305.0,0.07445365]
[1664626579281,0.001,19306.0,19304.0,0.129578]
[1664626582317,0.001,19306.0,19305.0,0.07445365]
[1664626582536,0.001,19306.0,19305.0,1.04510509]
[1664626582754,0.001,19306.0,19305.0,1.30872961]
[1664626582975,0.001,19306.0,19305.0,1.40872961]
[1664626583201,0.001,19306.0,19305.0,1.04980961]
[1664626583378,0.001,19306.0,19305.0,1.40872961]
[1664626583821,0.001,19306.0,19305.0,1.04980961]
[1664626584174,0.001,19306.0,19305.0,1.40872961]
[1664626584425,0.001,19306.0,19305.0,1.17460509]
[1664626584643,0.001,19306.0,19305.0,1.40872961]
[1664626584859,0.001,19306.0,19305.0,1.53822961]
[1664626585110,0.001,19306.0,19305.0,1.17930961]
[1664626585335,0.001,19306.0,19305.0,1.53822961]
[1664626587446,0.001,19306.0,19305.0,1.08060509]
[1664626587673,0.001,19306.0,19305.0,1.18060509]
[1664626587895,0.001,19306.0,19305.0,1.54422961]
[1664626588570,0.001,19306.0,19305.0,1.53822961]
[1664626589233,0.001,19306.0,19305.0,1.54422961]
[1664626590638,0.001,19306.0,19305.0,1.17930961]
[1664626590857,0.001,19306.0,19305.0,1.53822961]
[1664626591309,0.001,19306.0,19305.0,1.54422961]
[1664626592648,0.001,19306.0,19305.0,1.79722961]
[1664626593306,0.001,19306.0,19305.0,1.80322961]
[1664626593769,0.00089086,19306.0,19305.0,1.80322961]
[1664626594433,0.00089086,19306.0,19305.0,1.44430961]
[1664626594660,0.00089086,19306.0,19305.0,1.79722961]
[1664626595334,0.00089086,19306.0,19305.0,1.80322961]
[1664626596216,0.00089086,19306.0,19305.0,2.06226406]
[1664626596692,0.00089086,19306.0,19305.0,2.05626406]
[1664626597366,0.00089086,19306.0,19305.0,2.06226406]
[1664626598688,0.00089086,19306.0,19305.0,2.05626406]
[1664626599350,0.00089086,19306.0,19305.0,2.06226406]
[1664626600726,0.00089086,19306.0,19305.0,2.05626406]
[1664626601191,0.00089086,19306.0,19305.0,1.69734406]
[1664626601406,0.00089086,19306.0,19305.0,2.06226406]
[1664626602550,0.00089086,19306.0,19305.0,2.05626406]
[1664626602768,0.00089086,19306.0,19305.0,1.33371954]
[1664626603020,0.00089086,19306.0,19305.0,1.69263954]
[1664626603217,0.00089086,19306.0,19305.0,2.05626406]
[1664626603444,0.00089086,19306.0,19305.0,2.06226406]
[1664626604129,0.00089086,19306.0,19305.0,1.69863954]
[1664626604556,0.00089086,19306.0,19305.0,1.69734406]
[1664626604707,0.00089086,19306.0,19305.0,2.05626406]
[1664626605304,0.00089086,19306.0,19305.0,2.06226406]
[1664626606671,0.00089086,19306.0,19305.0,2.05626406]
[1664626607458,0.00089086,19306.0,19305.0,2.06226406]
[1664626608471,0.00089086,19306.0,19305.0,1.69863954]
[1664626608673,0.00089086,19306.0,19305.0,2.06226406]
[1664626608902,0.00089086,19306.0,19305.0,2.05626406]
[1664626609118,0.00089086,19306.0,19305.0,1.69263954]
[1664626609425,0.00089086,19306.0,19305.0,2.06226406]
[1664626609648,0.00089086,19306.0,19305.0,1.69863954]
[1664626610769,0.00089086,19306.0,19305.0,2.05626406]
[1664626611016,0.00089086,19306.0,19305.0,1.33371954]
[1664626611231,0.00089086,19306.0,19305.0,1.69263954]
[1664626611446,0.00089086,19306.0,19305.0,2.06226406]
[1664626612675,0.00089086,19306.0,19305.0,2.05626406]
[1664626613314,0.00089086,19306.0,19305.0,2.06226406]
[1664626614588,0.00089086,19306.0,19305.0,2.05626406]
[1664626615291,0.00089086,19306.0,19305.0,2.06226406]
[1664626617399,0.00089086,19306.0,19305.0,2.58026406]
[1664626617400,0.00077247,19306.0,19305.0,2.58026406]
[1664626617638,0.00077247,19306.0,19305.0,2.6111882]
[1664626618760,0.00077247,19306.0,19305.0,2.6051882]
[1664626619448,0.00077247,19306.0,19305.0,2.6211882]
[1664626621073,0.00077247,19306.0,19305.0,2.6051882]
[1664626621516,0.00077247,19306.0,19305.0,2.6241882]
[1664626621734,0.00077247,19306.0,19305.0,2.26056368]
[1664626621965,0.00077247,19306.0,19305.0,2.62415678]
[1664626622422,0.00077247,19306.0,19305.0,2.22963954]
[1664626622640,0.00077247,19306.0,19305.0,1.69263954]
[1664626623030,0.00077247,19306.0,19305.0,1.33371954]
[1664626623285,0.00077247,19306.0,19305.0,1.69263954]
[1664626623478,0.00077247,19306.0,19305.0,1.70363954]
[1664626624058,0.00077247,19306.0,19305.0,2.06726406]
[1664626624715,0.00077247,19306.0,19305.0,2.05626406]
[1664626625398,0.00077247,19306.0,19305.0,2.06726406]
[1664626626687,0.00077247,19306.0,19305.0,2.05626406]
[1664626627334,0.00077247,19306.0,19305.0,2.06726406]
[1664626628412,0.00077247,19306.0,19305.0,2.06715135]
[1664626628633,0.00077247,19306.0,19305.0,2.05615135]
[1664626628814,0.10805247,19306.0,19305.0,0.87065144]
[1664626629028,0.11905772,19306.0,19305.0,0.51173144]
[1664626629411,0.49653147,19306.0,19305.0,0.51773144]
[1664626630741,0.49653147,19306.0,19305.0,0.51173144]
[1664626631334,0.49653147,19306.0,19305.0,0.51773144]
[1664626631759,0.44469147,19306.0,19305.0,0.51773144]
[1664626632247,0.38925147,19306.0,19305.0,0.51773144]
[1664626632456,0.38925147,19306.0,19305.0,0.87665144]
[1664626632676,0.38925147,19306.0,19305.0,0.51173144]
[1664626633428,0.38925147,19306.0,19305.0,0.51773144]
[1664626634700,0.00077247,19306.0,19305.0,1.23427596]
[1664626634938,0.00077247,19306.0,19305.0,0.92065144]
[1664626635223,0.00077247,19306.0,19305.0,0.97065144]
[1664626635440,0.00077247,19306.0,19305.0,0.97665144]
[1664626635633,0.00077247,19306.0,19305.0,1.34027596]
[1664626636712,0.00077247,19306.0,19305.0,0.98135596]
[1664626637178,0.00077247,19306.0,19305.0,1.33427596]
[1664626637596,0.00077247,19306.0,19305.0,1.34027596]
[1664626638697,0.00077247,19306.0,19305.0,0.97665144]
[1664626638944,0.00077247,19306.0,19305.0,1.33427596]
[1664626639605,0.00077247,19306.0,19305.0,1.34027596]
[1664626639837,0.00077247,19306.0,19305.0,1.98781041]
[1664626640327,0.00077247,19306.0,19305.0,1.72881041]
[1664626641214,0.00077247,19306.0,19305.0,1.72281041]
[1664626641744,0.00077247,19306.0,19305.0,1.72881041]
[1664626642712,0.00077247,19306.0,19305.0,1.72281041]
[1664626643502,0.00077247,19306.0,19305.0,1.72881041]
[1664626644874,0.00077247,19306.0,19305.0,1.36389041]
[1664626645091,0.00077247,19306.0,19305.0,1.35918589]
[1664626645312,0.00077247,19306.0,19305.0,1.00026589]
[1664626645557,0.00077247,19306.0,19305.0,1.00626589]
[1664626645799,0.00077247,19306.0,19305.0,1.26518589]
[1664626646106,0.00077247,19306.0,19305.0,0.82676589]
[1664626646771,0.00077247,19306.0,19305.0,1.17968589]
[1664626647431,0.00077247,19306.0,19305.0,0.82076589]
[1664626647548,0.00077247,19306.0,19305.0,1.18568589]
[1664626648004,0.00077247,19306.0,19305.0,0.87665144]
[1664626648228,0.00077247,19306.0,19305.0,0.51773144]
[1664626648720,0.00077247,19306.0,19305.0,0.51173144]
[1664626649176,0.00077247,19306.0,19305.0,0.87065144]
[1664626649518,0.00077247,19306.0,19305.0,0.87665144]
[1664626649919,0.00077247,19306.0,19305.0,0.52048982]
[1664626650657,0.00077247,19306.0,19305.0,0.87940982]
[1664626650873,0.00077247,19306.0,19305.0,0.51448982]
[1664626651103,0.00077247,19306.0,19305.0,0.97340982]
[1664626651553,0.00077247,19306.0,19305.0,0.97940982]
[1664626651982,0.00077247,19306.0,19305.0,0.62048982]
[1664626652635,0.00077247,19306.0,19305.0,0.97940982]
[1664626652846,0.00077247,19306.0,19305.0,0.97340982]
[1664626653070,0.00077247,19306.0,19305.0,0.51448982]
[1664626653283,0.00077247,19306.0,19305.0,0.56448982]
[1664626653493,0.00077247,19306.0,19305.0,0.62048982]
[1664626653717,0.00077247,19306.0,19305.0,0.97940982]
[1664626653871,0.00077247,19306.0,19305.0,1.34300273]
[1664626654091,0.00077247,19306.0,19305.0,0.97940982]
[1664626654310,0.00077247,19306.0,19305.0,1.34303434]
[1664626654920,0.00077247,19306.0,19305.0,0.98411434]
[1664626655149,0.00077247,19306.0,19305.0,1.33703434]
[1664626655560,0.00077247,19306.0,19305.0,1.33803434]
[1664626656040,0.00077247,19306.0,19305.0,0.97440982]
[1664626656194,0.00077247,19306.0,19305.0,0.61548982]
[1664626656420,0.00077247,19306.0,19305.0,0.97911434]
[1664626656628,0.00077247,19306.0,19305.0,1.33803434]
[1664626656827,0.00077247,19306.0,19305.0,1.33703434]
[1664626657288,0.00077247,19306.0,19305.0,1.23703434]
[1664626657524,0.00077247,19306.0,19305.0,0.97911434]
[1664626657770,0.00077247,19306.0,19305.0,1.33803434]
[1664626658460,0.00077247,19306.0,19305.0,0.97911434]
[1664626658684,0.00077247,19306.0,19305.0,1.33703434]
[1664626659215,0.00077247,19306.0,19305.0,0.97340982]
[1664626659690,0.00077247,19306.0,19305.0,1.33803434]
[1664626660127,0.00077247,19306.0,19305.0,0.97440982]
[1664626660319,0.00077247,19306.0,19305.0,0.61548982]
[1664626660571,0.00077247,19306.0,19305.0,0.97440982]
[1664626660825,0.00077247,19306.0,19305.0,0.61448982]
[1664626661008,0.00077247,19306.0,19305.0,0.97340982]
[1664626661434,0.00077247,19306.0,19305.0,1.46653434]
[1664626661690,0.00077247,19306.0,19305.0,1.47253434]
[1664626661904,0.00077247,19306.0,19305.0,1.10890982]
[1664626662121,0.00077247,19306.0,19305.0,1.47253434]
[1664626662861,0.00077247,19306.0,19305.0,1.46653434]
[1664626663531,0.00077247,19306.0,19305.0,1.46753434]
[1664626664906,0.00077247,19306.0,19305.0,1.46653434]
[1664626665376,0.00077247,19306.0,19305.0,1.72553434]
[1664626665639,0.00077247,19306.0,19305.0,1.73153434]
[1664626666905,0.00077247,19306.0,19305.0,1.72553434]
[1664626667545,0.00077247,19306.0,19305.0,1.72653434]
[1664626668779,0.00077247,19306.0,19305.0,1.72553434]
[1664626669626,0.00077247,19306.0,19305.0,1.72653434]
[1664626670939,0.00077247,19306.0,19305.0,1.72553434]
[1664626671543,0.00077247,19306.0,19305.0,2.24453434]
[1664626671785,0.00069727,19306.0,19305.0,2.24453434]
[1664626672907,0.00069727,19306.0,19305.0,2.24353434]
[1664626673635,0.00069727,19306.0,19305.0,2.24453434]
[1664626674965,0.00069727,19306.0,19305.0,2.24353434]
[1664626675696,0.00069727,19306.0,19305.0,2.24453434]
[1664626676503,0.00069727,19306.0,19305.0,1.88090982]
[1664626676958,0.00069727,19306.0,19305.0,2.24453434]
[1664626677157,0.00069727,19306.0,19305.0,2.24353434]
[1664626677619,0.00069727,19306.0,19305.0,2.24453434]
[1664626678979,0.00069727,19306.0,19305.0,2.24353434]
[1664626679647,0.00069727,19306.0,19305.0,2.24453434]
[1664626680028,0.00069727,19306.0,19305.0,0.51548982]
[1664626680029,0.2055366,19306.0,19305.0,0.51548982]
[1664626680246,0.02145093,19306.0,19305.0,0.00375838]
[1664626680483,0.38507545,19306.0,19305.0,0.00375838]
[1664626680948,0.38507545,19306.0,19305.0,0.00275838]
[1664626681367,0.02145093,19306.0,19305.0,0.00275838]
[1664626682633,0.38507545,19306.0,19305.0,0.00275838]
[1664626682857,0.68507545,19306.0,19304.0,0.129578]
[1664626683088,0.08643218,19305.0,19304.0,0.129578]
[1664626683310,0.03643218,19305.0,19304.0,0.129578]
[1664626683558,0.7000567,19305.0,19302.0,0.129588]
[1664626683771,0.05,19303.0,19302.0,0.129588]
[1664626685882,0.05,19303.0,19302.0,0.64455396]
[1664626686103,1.035966,19304.0,19302.0,0.64455396]
[1664626686993,1.035966,19304.0,19302.0,0.64131944]
[1664626692028,1.03587336,19304.0,19302.0,0.64131944]
[1664626692256,1.03587336,19304.0,19303.0,0.35892]
[1664626692472,1.03587336,19304.0,19302.0,0.77091044]
[1664626692692,1.15957011,19304.0,19302.0,0.77091044]
[1664626693838,1.03587336,19304.0,19302.0,0.77091044]
[1664626696227,1.03587336,19304.0,19303.0,0.00303064]
[1664626696316,0.906546,19304.0,19303.0,0.00303064]
[1664626696533,0.77704,19304.0,19303.0,0.00303064]
[1664626696661,0.77704,19304.0,19303.0,0.13261564]
[1664626697652,0.259013,19304.0,19303.0,0.13261564]
[1664626698001,0.58959818,19305.0,19303.0,0.64434708]
[1664626698225,0.58959818,19305.0,19304.0,0.87065144]
[1664626698439,0.58959818,19305.0,19304.0,0.51173144]
[1664626701689,0.58959818,19305.0,19304.0,0.77173144]
[1664626714518,0.00069727,19306.0,19304.0,0.77173144]
[1664626714745,0.00069727,19306.0,19305.0,0.51173144]
[1664626717466,0.13019027,19306.0,19305.0,0.51173144]
[1664626718118,0.13019027,19306.0,19305.0,0.51162386]
[1664626720945,0.38917627,19306.0,19305.0,0.51162386]
[1664626726061,0.90714927,19306.0,19305.0,0.51162386]
[1664626726523,1.1032236,19306.0,19305.0,0.51162386]
[1664626727392,1.1032236,19306.0,19304.0,1.03088744]
[1664626727617,0.05,19305.0,19304.0,0.519156]
[1664626727838,0.14071493,19305.0,19304.0,0.389578]
[1664626728347,0.75433945,19305.0,19304.0,0.389578]
[1664626728569,0.75433945,19305.0,19304.0,0.26]
[1664626728570,1.88608751,19305.0,19304.0,0.26]
[1664626729422,1.52246299,19305.0,19304.0,0.26]
[1664626731362,1.22246299,19305.0,19304.0,0.26]
[1664626732092,1.52246299,19305.0,19304.0,0.26]
[1664626732216,1.22246299,19305.0,19304.0,0.26]
[1664626732431,1.52246299,19305.0,19304.0,0.26]
[1664626732654,1.22246299,19305.0,19304.0,0.26]
[1664626733591,0.99721493,19305.0,19304.0,0.26]
[1664626733821,0.9065,19305.0,19304.0,0.26]
[1664626738567,0.1295,19305.0,19304.0,0.77173144]
[1664626740273,0.3885,19305.0,19304.0,0.77173144]
[1664626740927,0.3885,19305.0,19304.0,0.77162006]
[1664626744163,0.9065,19305.0,19304.0,0.77162006]
[1664626747478,1.05307878,19305.0,19304.0,0.77162006]
[1664626748542,1.05307878,19305.0,19304.0,0.25988862]
[1664626750690,1.35307878,19305.0,19304.0,0.25988862]
[1664626751539,1.05307878,19305.0,19304.0,0.25988862]
[1664626755758,0.9065,19305.0,19304.0,0.25988862]
[1664626759631,0.9065,19305.0,19303.0,0.25917]
[1664626759849,0.9065,19305.0,19303.0,0.77090144]
[1664626763413,0.05,19304.0,19303.0,0.77090144]
[1664626763635,0.09565,19304.0,19303.0,0.6412526]
[1664626764074,0.09565,19304.0,19303.0,0.9012526]
[1664626766353,0.906502,19305.0,19303.0,0.9012526]
[1664626766577,0.906502,19305.0,19303.0,1.0308396]
[1664626771958,0.906502,19305.0,19303.0,1.0220596]
[1664626772944,0.9471195,19305.0,19303.0,1.0220596]
[1664626773400,0.906502,19305.0,19303.0,1.0220596]
[1664626776777,0.9471195,19305.0,19303.0,1.0220596]
[1664626776958,0.906502,19305.0,19303.0,1.0220596]
[1664626778682,0.9471195,19305.0,19303.0,1.0220596]
[1664626778895,1.10668799,19305.0,19303.0,1.0220596]
[1664626779655,0.05,19304.0,19303.0,1.0220596]
[1664626779808,1.09535787,19306.0,19303.0,0.8924726]
[1664626780017,1.09535787,19306.0,19303.0,1.0220596]
[1664626780275,0.906502,19305.0,19303.0,1.0220596]
[1664626781641,0.9471195,19305.0,19303.0,1.0220596]
[1664626782067,0.906502,19305.0,19303.0,1.0220596]
[1664626786924,0.906502,19305.0,19304.0,0.58618509]
[1664626786925,0.388502,19305.0,19304.0,0.58618509]
[1664626787160,0.388502,19305.0,19304.0,0.51173144]
[1664626789728,0.00069727,19306.0,19305.0,0.07445365]
[1664626789945,0.00069727,19306.0,19305.0,1.38478888]
[1664626790170,0.00069727,19306.0,19305.0,1.51428888]
[1664626790393,0.00069727,19306.0,19305.0,1.77332526]
[1664626790611,0.00069727,19306.0,19305.0,2.03232526]
[1664626790828,0.00069727,19306.0,19305.0,1.69264147]
[1664626791967,0.00060336,19306.0,19305.0,1.69264147]
[1664626792244,0.00060336,19306.0,19305.0,1.34572147]
[1664626792474,0.00060336,19306.0,19305.0,0.59818509]
[1664626792929,0.00060336,19306.0,19305.0,0.95710509]
[1664626793408,0.00060336,19306.0,19305.0,0.58618509]
[1664626793636,0.00049454,19306.0,19305.0,0.58618509]
[1664626794073,0.00049454,19306.0,19305.0,0.94610509]
[1664626794462,0.00049454,19306.0,19305.0,0.51273144]
[1664626794855,0.00049454,19306.0,19305.0,0.87165144]
[1664626795263,0.00049454,19306.0,19305.0,0.87065144]
[1664626795921,0.00049454,19306.0,19305.0,0.51173144]
[1664626796135,0.00049454,19306.0,19305.0,0.51273144]
[1664626796580,0.00049454,19306.0,19305.0,0.87165144]
[1664626797348,0.00049454,19306.0,19305.0,0.51173144]
[1664626797569,0.00049454,19306.0,19305.0,0.87065144]
[1664626797778,0.00049454,19306.0,19305.0,0.51173144]
[1664626798024,0.00049454,19306.0,19305.0,0.87065144]
[1664626798242,0.00049454,19306.0,19305.0,0.87165144]
[1664626798475,0.00049454,19306.0,19305.0,0.001]
[1664626798476,0.31261387,19306.0,19305.0,0.001]
[1664626798755,1.35196436,19306.0,19305.0,0.001]
[1664626799004,1.69947397,19306.0,19305.0,0.001]
[1664626799232,3.12587215,19306.0,19305.0,0.001]
[1664626799463,4.08027704,19306.0,19303.0,0.26]
[1664626799686,0.05,19304.0,19303.0,0.26]
[1664626799918,0.41362452,19304.0,19303.0,0.26]
[1664626800394,1.56000148,19304.0,19303.0,0.26]
[1664626800628,1.8193916,19304.0,19303.0,0.26]
[1664626800871,0.99671856,19304.0,19303.0,0.26]
[1664626801087,1.3669246,19304.0,19303.0,0.26]
[1664626801531,1.55135368,19304.0,19303.0,0.26]
[1664626802227,1.60235368,19304.0,19303.0,0.26]